fUST/lending_fUST_20250607
["ID","MTS","AMOUNT","RATE_DAILY","PERIOD"]
[364780916,1749240639277,-440.0,0.00020273,2]
[364780917,1749240639287,-2822.37,0.00020273,2]
[364780918,1749240639296,-440.0,0.00020273,2]
[364780919,1749240639306,-440.0,0.00020273,2]
[364780920,1749240639315,-440.0,0.00020273,2]
[364780922,1749240639325,-440.0,0.00020273,2]
[364780924,1749240639339,-440.0,0.00020273,2]
[364780925,1749240639348,-440.0,0.00020273,2]
[364780926,1749240639357,-1200.29,0.00020273,2]
[364780927,1749240639367,-440.0,0.00020273,2]
[364780929,1749240639378,-440.0,0.00020273,2]
[364780930,1749240639387,-2670.16,0.00020273,2]
[364780931,1749240639396,-717.71,0.00020273,2]
[364780932,1749240639407,-440.0,0.00020273,2]
[364780933,1749240639416,-440.0,0.00020273,2]
[364780934,1749240639426,-916.0,0.00020273,2]
[364780935,1749240639435,-440.0,0.00020273,2]
[364780936,1749240639445,-849.72,0.00020273,2]
[364780937,1749240639455,-440.0,0.00020273,2]
[364780938,1749240639465,-440.0,0.00020273,2]
[364780939,1749240639475,-440.0,0.00020273,2]
[364780940,1749240639484,-440.0,0.00020273,2]
[364780941,1749240639495,-440.0,0.00020273,2]
[364780942,1749240639504,-440.0,0.00020273,2]
[364780943,1749240639513,-440.0,0.00020273,2]
[364780944,1749240639523,-784.07,0.00020273,2]
[364780945,1749240639532,-440.0,0.00020273,2]
[364780946,1749240639542,-440.0,0.00020273,2]
[364780947,1749240639551,-440.0,0.00020273,2]
[364780948,1749240639560,-440.0,0.00020273,2]
[364780949,1749240639570,-2274.67,0.00020273,2]
[364780951,1749240639584,-465.7,0.00020273,2]
[364780953,1749240639599,-440.0,0.00020273,2]
[364780954,1749240639613,-440.0,0.00020273,2]
[364780955,1749240639627,-440.0,0.00020273,2]
[364780956,1749240639638,-1117.74,0.00020273,2]
[364780957,1749240639652,-380.0,0.00020273,2]
[364780958,1749240639666,-440.0,0.00020273,2]
[364780959,1749240639681,-440.0,0.00020273,2]
[364780962,1749240639694,-2157.36,0.00020273,2]
[364780963,1749240639706,-1320.35,0.00020273,2]
[364780964,1749240639720,-1236.34,0.00020273,2]
[364780965,1749240639734,-440.0,0.00020273,2]
[364780967,1749240639747,-1278.26,0.00020273,2]
[364780969,1749240639759,-440.0,0.00020273,2]
[364780972,1749240639771,-398.35377209,0.00020385,2]
[364780974,1749240639783,-1437.5459281,0.00020417,3]
[364780976,1749240639795,-160.0,0.00020519,2]
[364780979,1749240639808,-502.60334184,0.00020521,2]
[364780981,1749240639820,-500.0,0.00020524,2]
[364780983,1749240639833,-160.0,0.00020535,2]
[364780985,1749240639844,-229.52673067,0.00020535,2]
[364780988,1749240639855,-160.0,0.00020535,2]
[364780990,1749240639867,-423.83542519,0.00020535,2]
[364780992,1749240639880,-160.0,0.00020535,2]
[364780995,1749240639892,-842.5625,0.00020535,2]
[364780997,1749240639905,-11849.89752062,0.00020535,2]
[364780999,1749240639919,-160.0,0.00020535,2]
[364781002,1749240639933,-834.50537533,0.00020535,2]
[364781004,1749240639944,-160.0,0.00020535,2]
[364781007,1749240639958,-212.976918,0.00020535,2]
[364781009,1749240639971,-160.0,0.00020535,2]
[364781011,1749240639982,-440.0,0.00020547,2]
[364781013,1749240639994,-440.0,0.00020547,2]
[364781016,1749240640005,-440.0,0.00020547,2]
[364781018,1749240640019,-440.0,0.00020547,2]
[364781021,1749240640034,-440.0,0.00020547,2]
[364781023,1749240640047,-698.12,0.00020547,2]
[364781025,1749240640058,-604.04,0.00020547,2]
[364781027,1749240640069,-560.01,0.00020547,2]
[364781030,1749240640081,-440.0,0.00020547,2]
[364781032,1749240640094,-332.34,0.00020547,2]
[364781035,1749240640106,-440.0,0.00020547,2]
[364781037,1749240640117,-440.0,0.00020547,2]
[364781039,1749240640128,-560.87,0.00020547,2]
[364781041,1749240640139,-337.83763468,0.00020547,2]
[364781043,1749240640150,-516.7,0.00020547,2]
[364781045,1749240640161,-440.0,0.00020547,2]
[364781048,1749240640173,-420.0,0.00020547,2]
[364781050,1749240640185,-500.0,0.00020547,2]
[364781052,1749240640197,-440.0,0.00020547,2]
[364781054,1749240640208,-440.0,0.00020547,2]
[364781057,1749240640220,-445.81,0.00020547,2]
[364781059,1749240640231,-440.0,0.00020547,2]
[364781061,1749240640242,-440.0,0.00020547,2]
[364781063,1749240640254,-1886.05,0.00020547,2]
[364781066,1749240640266,-440.0,0.00020547,2]
[364781068,1749240640277,-654.4,0.00020547,2]
[364781070,1749240640288,-925.19,0.00020547,2]
[364781072,1749240640299,-727.62,0.00020547,2]
[364781074,1749240640310,-440.0,0.00020547,2]
[364781076,1749240640322,-462.23,0.00020547,2]
[364781079,1749240640335,-440.0,0.00020547,2]
[364781081,1749240640347,-440.0,0.00020547,2]
[364781083,1749240640358,-2822.37,0.00020547,2]
[364781085,1749240640369,-440.0,0.00020547,2]
[364781087,1749240640382,-440.0,0.00020547,2]
[364781090,1749240640393,-440.0,0.00020547,2]
[364781092,1749240640403,-440.0,0.00020547,2]
[364781094,1749240640416,-440.0,0.00020547,2]
[364781096,1749240640427,-440.0,0.00020547,2]
[364781098,1749240640438,-1200.29,0.00020547,2]
[364781100,1749240640449,-440.0,0.00020547,2]
[364781103,1749240640461,-440.0,0.00020547,2]
[364781105,1749240640473,-2670.16,0.00020547,2]
[364781107,1749240640484,-717.71,0.00020547,2]
[364781109,1749240640497,-440.0,0.00020547,2]
[364781111,1749240640509,-440.0,0.00020547,2]
[364781114,1749240640520,-916.0,0.00020547,2]
[364781116,1749240640531,-440.0,0.00020547,2]
[364781118,1749240640543,-849.72,0.00020547,2]
[364781120,1749240640555,-440.0,0.00020547,2]
[364781122,1749240640566,-440.0,0.00020547,2]
[364781125,1749240640576,-440.0,0.00020547,2]
[364781127,1749240640585,-440.0,0.00020547,2]
[364781129,1749240640596,-440.0,0.00020547,2]
[364781131,1749240640606,-400.0,0.00020547,2]
[364781133,1749240640615,-440.0,0.00020547,2]
[364781135,1749240640624,-784.07,0.00020547,2]
[364781137,1749240640634,-440.0,0.00020547,2]
[364781139,1749240640644,-440.0,0.00020547,2]
[364781141,1749240640653,-440.0,0.00020547,2]
[364781143,1749240640663,-440.0,0.00020547,2]
[364781145,1749240640672,-2274.67,0.00020547,2]
[364781147,1749240640682,-440.0,0.00020547,2]
[364781149,1749240640691,-440.0,0.00020547,2]
[364781151,1749240640702,-440.0,0.00020547,2]
[364781153,1749240640711,-1117.74,0.00020547,2]
[364781155,1749240640721,-440.0,0.00020547,2]
[364781157,1749240640730,-440.0,0.00020547,2]
[364781159,1749240640739,-2157.36,0.00020547,2]
[364781161,1749240640749,-1320.35,0.00020547,2]
[364781163,1749240640758,-1236.34,0.00020547,2]
[364781165,1749240640768,-440.0,0.00020547,2]
[364781167,1749240640778,-1278.26,0.00020547,2]
[364781188,1749240640961,-440.0,0.00020547,2]
[364781190,1749240640979,-911.14815125,0.00020567,2]
[364781192,1749240640989,-1437.5459281,0.0002059,3]
[364781194,1749240640999,-803.72,0.000206,2]
[364781196,1749240641009,-241.92254447,0.00020656,2]
[364781198,1749240641018,-500.0,0.00020656,2]
[364781200,1749240641028,-151.0,0.00020656,2]
[364781202,1749240641037,-500.0,0.00020656,2]
[364781204,1749240641047,-151.0,0.00020656,2]
[364781206,1749240641056,-151.0,0.00020656,2]
[364781208,1749240641066,-151.0,0.00020656,2]
[364781210,1749240641075,-151.5395447,0.00020656,2]
[364781212,1749240641085,-151.24666928,0.00020656,2]
[364781215,1749240641094,-151.0,0.00020656,2]
[364781217,1749240641103,-151.0,0.00020656,2]
[364781219,1749240641113,-151.0,0.00020656,2]
[364781220,1749240641122,-500.0,0.00020656,2]
[364781223,1749240641131,-500.0,0.00020683,2]
[364781225,1749240641141,-151.0,0.00020683,2]
[364781227,1749240641151,-500.0,0.00020683,2]
[364781228,1749240641160,-198.0,0.00020683,2]
[364781230,1749240641170,-199.73141167,0.00020683,2]
[364781233,1749240641179,-151.0,0.00020683,2]
[364781235,1749240641189,-151.0,0.00020683,2]
[364781237,1749240641199,-151.0,0.00020683,2]
[364781239,1749240641208,-500.0,0.00020683,2]
[364781241,1749240641217,-500.0,0.00020711,2]
[364781243,1749240641226,-151.0,0.00020711,2]
[364781245,1749240641235,-500.0,0.00020711,2]
[364781247,1749240641244,-199.33053675,0.00020711,2]
[364781249,1749240641254,-203.3482826,0.00020711,2]
[364781251,1749240641263,-198.0,0.00020711,2]
[364781253,1749240641272,-500.0,0.00020711,2]
[364781254,1749240641281,-500.0,0.00020738,2]
[364781257,1749240641291,-151.0,0.00020738,2]
[364781258,1749240641301,-355.94527429,0.00020738,2]
[364781261,1749240641311,-506.91527344,0.00020738,2]
[364781263,1749240641320,-150.0,0.00020739,2]
[364781265,1749240641331,-1500.0,0.00020762,2]
[364781266,1749240641341,-1437.5459281,0.00020762,3]
[364781268,1749240641351,-500.0,0.00020766,2]
[364781271,1749240641360,-151.0,0.00020766,2]
[364781273,1749240641370,-500.0,0.00020793,2]
[364781275,1749240641381,-245.0,0.00020793,2]
[364781277,1749240641390,-852.54,0.00020812,3]
[364781279,1749240641400,-426.28,0.00020812,3]
[364781281,1749240641411,-440.0,0.00020821,2]
[364781283,1749240641420,-440.0,0.00020821,2]
[364781285,1749240641429,-380.0,0.00020821,2]
[364781287,1749240641439,-440.0,0.00020821,2]
[364781289,1749240641448,-420.0,0.00020821,2]
[364781291,1749240641457,-698.12,0.00020821,2]
[364781293,1749240641468,-604.04,0.00020821,2]
[364781295,1749240641477,-560.01,0.00020821,2]
[364781297,1749240641487,-440.0,0.00020821,2]
[364781299,1749240641498,-440.0,0.00020821,2]
[364781301,1749240641507,-263.59544499,0.00020821,2]
[364781303,1749240641516,-560.87,0.00020821,2]
[364781305,1749240641526,-516.7,0.00020821,2]
[364781308,1749240641536,-440.0,0.00020821,2]
[364781310,1749240641545,-440.0,0.00020821,2]
[364781311,1749240641555,-440.0,0.00020821,2]
[364781314,1749240641565,-445.81,0.00020821,2]
[364781316,1749240641574,-440.0,0.00020821,2]
[364781317,1749240641584,-440.0,0.00020821,2]
[364781318,1749240641594,-1886.05,0.00020821,2]
[364781319,1749240641603,-346.75756619,0.00020821,2]
[364781320,1749240641613,-654.4,0.00020821,2]
[364781321,1749240641623,-925.19,0.00020821,2]
[364781322,1749240641632,-727.62,0.00020821,2]
[364781323,1749240641642,-440.0,0.00020821,2]
[364781324,1749240641651,-462.23,0.00020821,2]
[364781325,1749240641660,-340.0,0.00020821,2]
[364781326,1749240641670,-440.0,0.00020821,2]
[364781327,1749240641679,-2822.37,0.00020821,2]
[364781328,1749240641689,-440.0,0.00020821,2]
[364781329,1749240641698,-440.0,0.00020821,2]
[364781330,1749240641708,-440.0,0.00020821,2]
[364781331,1749240641718,-236.25,0.00020821,2]
[364781333,1749240641727,-440.0,0.00020821,2]
[364781334,1749240641736,-440.0,0.00020821,2]
[364781336,1749240641745,-1200.29,0.00020821,2]
[364781338,1749240641754,-440.0,0.00020821,2]
[364781340,1749240641763,-440.0,0.00020821,2]
[364781342,1749240641772,-2670.16,0.00020821,2]
[364781344,1749240641781,-717.71,0.00020821,2]
[364781346,1749240641791,-440.0,0.00020821,2]
[364781348,1749240641800,-160.0,0.00020821,2]
[364781350,1749240641809,-370.0,0.00020821,2]
[364781352,1749240641819,-916.0,0.00020821,2]
[364781354,1749240641828,-440.0,0.00020821,2]
[364781356,1749240641837,-849.72,0.00020821,2]
[364781358,1749240641847,-440.0,0.00020821,2]
[364781360,1749240641856,-440.0,0.00020821,2]
[364781362,1749240641866,-440.0,0.00020821,2]
[364781364,1749240641876,-440.0,0.00020821,2]
[364781366,1749240641886,-440.0,0.00020821,2]
[364781368,1749240641896,-440.0,0.00020821,2]
[364781370,1749240641904,-784.07,0.00020821,2]
[364781372,1749240641914,-440.0,0.00020821,2]
[364781374,1749240641924,-440.0,0.00020821,2]
[364781376,1749240641932,-440.0,0.00020821,2]
[364781378,1749240641942,-440.0,0.00020821,2]
[364781380,1749240641951,-2274.67,0.00020821,2]
[364781382,1749240641961,-440.0,0.00020821,2]
[364781384,1749240641971,-440.0,0.00020821,2]
[364781386,1749240641980,-440.0,0.00020821,2]
[364781388,1749240641989,-1117.74,0.00020821,2]
[364781390,1749240641999,-440.0,0.00020821,2]
[364781392,1749240642008,-440.0,0.00020821,2]
[364781394,1749240642017,-2157.36,0.00020821,2]
[364781396,1749240642027,-1320.35,0.00020821,2]
[364781398,1749240642036,-1236.34,0.00020821,2]
[364781400,1749240642046,-440.0,0.00020821,2]
[364781402,1749240642055,-1278.26,0.00020821,2]
[364781404,1749240642064,-440.0,0.00020821,2]
[364781406,1749240642073,-420.0,0.00020898,2]
[364781408,1749240642082,-420.0,0.00020899,2]
[364781410,1749240642092,-495.75,0.000209,2]
[364781412,1749240642101,-1437.5459281,0.00020934,4]
[364781414,1749240642111,-160.0,0.00021037,3]
[364781416,1749240642120,-303.62160747,0.00021095,2]
[364781418,1749240642130,-440.0,0.00021095,2]
[364781421,1749240642139,-440.0,0.00021095,2]
[364781422,1749240642149,-698.12,0.00021095,2]
[364781424,1749240642158,-604.04,0.00021095,2]
[364781427,1749240642167,-560.01,0.00021095,2]
[364781429,1749240642176,-420.0,0.00021095,2]
[364781430,1749240642185,-560.87,0.00021095,2]
[364781432,1749240642194,-516.7,0.00021095,2]
[364781434,1749240642203,-440.0,0.00021095,2]
[364781436,1749240642212,-500.0,0.00021095,3]
[364781438,1749240642222,-440.0,0.00021095,2]
[364781440,1749240642231,-270.13348515,0.00021095,2]
[364781442,1749240642240,-445.81,0.00021095,2]
[364781445,1749240642250,-555.89863094,0.00021095,2]
[364781446,1749240642259,-440.0,0.00021095,2]
[364781449,1749240642268,-1886.05,0.00021095,2]
[364781451,1749240642278,-654.4,0.00021095,2]
[364781453,1749240642287,-925.19,0.00021095,2]
[364781454,1749240642295,-727.62,0.00021095,2]
[364781456,1749240642305,-440.0,0.00021095,2]
[364781460,1749240642314,-462.23,0.00021095,2]
[364781462,1749240642324,-440.0,0.00021095,2]
[364781463,1749240642337,-2822.37,0.00021095,2]
[364781467,1749240642347,-440.0,0.00021095,2]
[364781469,1749240642356,-440.0,0.00021095,2]
[364781471,1749240642365,-440.0,0.00021095,2]
[364781473,1749240642375,-440.0,0.00021095,2]
[364781475,1749240642384,-440.0,0.00021095,2]
[364781476,1749240642393,-1200.29,0.00021095,2]
[364781478,1749240642404,-390.0,0.00021095,2]
[364781481,1749240642414,-2670.16,0.00021095,2]
[364781483,1749240642423,-440.0,0.00021095,2]
[364781485,1749240642432,-717.71,0.00021095,2]
[364781487,1749240642442,-440.0,0.00021095,2]
[364781489,1749240642451,-916.0,0.00021095,2]
[364781491,1749240642461,-300.54313436,0.00021095,2]
[364781493,1749240642471,-849.72,0.00021095,2]
[364781495,1749240642480,-400.0,0.00021095,2]
[364781497,1749240642489,-440.0,0.00021095,2]
[364781499,1749240642500,-440.0,0.00021095,2]
[364781501,1749240642509,-263.09013383,0.00021095,2]
[364781503,1749240642518,-440.0,0.00021095,2]
[364781505,1749240642528,-440.0,0.00021095,2]
[364781507,1749240642537,-784.07,0.00021095,2]
[364781509,1749240642546,-440.0,0.00021095,2]
[364781511,1749240642555,-440.0,0.00021095,2]
[364781513,1749240642564,-440.0,0.00021095,2]
[364781515,1749240642573,-440.0,0.00021095,2]
[364781517,1749240642582,-2274.67,0.00021095,2]
[364781519,1749240642592,-440.0,0.00021095,2]
[364781521,1749240642601,-440.0,0.00021095,2]
[364781522,1749240642610,-1117.74,0.00021095,2]
[364781524,1749240642619,-440.0,0.00021095,2]
[364781526,1749240642629,-440.0,0.00021095,2]
[364781528,1749240642639,-440.0,0.00021095,2]
[364781530,1749240642648,-2157.36,0.00021095,2]
[364781532,1749240642657,-1320.35,0.00021095,2]
[364781534,1749240642666,-1236.34,0.00021095,2]
[364781536,1749240642676,-440.0,0.00021095,2]
[364781538,1749240642685,-1278.26,0.00021095,2]
[364781540,1749240642694,-440.0,0.00021095,2]
[364781542,1749240642704,-645.37555078,0.00021097,2]
[364781544,1749240642713,-1437.5459281,0.00021107,4]
[364781546,1749240642724,-1437.5459281,0.00021279,5]
[364781548,1749240642733,-440.0,0.00021369,2]
[364781550,1749240642742,-440.0,0.00021369,2]
[364781552,1749240642751,-698.12,0.00021369,2]
[364781554,1749240642760,-604.04,0.00021369,2]
[364781556,1749240642770,-560.01,0.00021369,2]
[364781558,1749240642779,-560.87,0.00021369,2]
[364781560,1749240642788,-516.7,0.00021369,2]
[364781562,1749240642798,-440.0,0.00021369,2]
[364781565,1749240642809,-440.0,0.00021369,2]
[364781567,1749240642818,-445.81,0.00021369,2]
[364781569,1749240642827,-440.0,0.00021369,2]
[364781571,1749240642836,-1886.05,0.00021369,2]
[364781573,1749240642845,-654.4,0.00021369,2]
[364781575,1749240642855,-925.19,0.00021369,2]
[364781576,1749240642864,-440.0,0.00021369,2]
[364781579,1749240642874,-727.62,0.00021369,2]
[364781581,1749240642883,-462.23,0.00021369,2]
[364781582,1749240642893,-415.4451111,0.00021369,2]
[364781584,1749240642902,-2822.37,0.00021369,2]
[364781586,1749240642912,-440.0,0.00021369,2]
[364781588,1749240642921,-440.0,0.00021369,2]
[364781591,1749240642931,-440.0,0.00021369,2]
[364781593,1749240642941,-440.0,0.00021369,2]
[364781595,1749240642950,-440.0,0.00021369,2]
[364781596,1749240642959,-1200.29,0.00021369,2]
[364781598,1749240642969,-440.0,0.00021369,2]
[364781601,1749240642979,-2670.16,0.00021369,2]
[364781602,1749240642989,-717.71,0.00021369,2]
[364781604,1749240642997,-440.0,0.00021369,2]
[364781606,1749240643007,-916.0,0.00021369,2]
[364781608,1749240643016,-849.72,0.00021369,2]
[364781610,1749240643025,-440.0,0.00021369,2]
[364781612,1749240643034,-185.07270749,0.00021369,2]
[364781614,1749240643043,-440.0,0.00021369,2]
[364781616,1749240643053,-440.0,0.00021369,2]
[364781618,1749240643062,-784.07,0.00021369,2]
[364781620,1749240643071,-440.0,0.00021369,2]
[364781622,1749240643081,-440.0,0.00021369,2]
[364781624,1749240643090,-232.29,0.00021369,2]
[364781626,1749240643100,-440.0,0.00021369,2]
[364781628,1749240643109,-2274.67,0.00021369,2]
[364781631,1749240643119,-440.0,0.00021369,2]
[364781633,1749240643129,-440.0,0.00021369,2]
[364781635,1749240643138,-1117.74,0.00021369,2]
[364781637,1749240643147,-440.0,0.00021369,2]
[364781638,1749240643156,-440.0,0.00021369,2]
[364781640,1749240643165,-440.0,0.00021369,2]
[364781642,1749240643174,-2157.36,0.00021369,2]
[364781644,1749240643183,-1320.35,0.00021369,2]
[364781646,1749240643193,-1236.34,0.00021369,2]
[364781648,1749240643203,-440.0,0.00021369,2]
[364781650,1749240643212,-1278.26,0.00021369,2]
[364781652,1749240643222,-440.0,0.00021369,2]
[364781654,1749240643231,-1437.5459281,0.00021452,5]
[364781656,1749240643241,-1437.5459281,0.00021624,5]
[364781658,1749240643250,-2224.0,0.00021631,2]
[364781660,1749240643259,-709.0,0.00021631,2]
[364781662,1749240643269,-405.0,0.00021631,2]
[364781664,1749240643278,-150.0,0.00021641,2]
[364781666,1749240643287,-440.0,0.00021643,2]
[364781668,1749240643296,-440.0,0.00021643,2]
[364781670,1749240643306,-698.12,0.00021643,2]
[364781672,1749240643315,-604.04,0.00021643,2]
[364781674,1749240643324,-560.01,0.00021643,2]
[364781676,1749240643336,-560.87,0.00021643,2]
[364781678,1749240643346,-516.7,0.00021643,2]
[364781680,1749240643355,-328.35494578,0.00021643,2]
[364781682,1749240643365,-500.0,0.00021643,4]
[364781684,1749240643375,-491.07108352,0.00021643,2]
[364781687,1749240643384,-445.81,0.00021643,2]
[364781688,1749240643393,-440.0,0.00021643,2]
[364781690,1749240643403,-1886.05,0.00021643,2]
[364781693,1749240643415,-654.4,0.00021643,2]
[364781694,1749240643424,-925.19,0.00021643,2]
[364781697,1749240643434,-440.0,0.00021643,2]
[364781699,1749240643443,-727.62,0.00021643,2]
[364781701,1749240643452,-462.23,0.00021643,2]
[364781702,1749240643461,-2822.37,0.00021643,2]
[364781705,1749240643472,-440.0,0.00021643,2]
[364781707,1749240643481,-440.0,0.00021643,2]
[364781709,1749240643491,-440.0,0.00021643,2]
[364781711,1749240643500,-440.0,0.00021643,2]
[364781713,1749240643510,-440.0,0.00021643,2]
[364781715,1749240643520,-1200.29,0.00021643,2]
[364781716,1749240643529,-440.0,0.00021643,2]
[364781718,1749240643538,-2670.16,0.00021643,2]
[364781721,1749240643548,-717.71,0.00021643,2]
[364781723,1749240643557,-440.0,0.00021643,2]
[364781725,1749240643566,-916.0,0.00021643,2]
[364781727,1749240643575,-849.72,0.00021643,2]
[364781729,1749240643585,-440.0,0.00021643,2]
[364781731,1749240643594,-346.93,0.00021643,2]
[364781733,1749240643603,-440.0,0.00021643,2]
[364781735,1749240643613,-784.07,0.00021643,2]
[364781737,1749240643622,-440.0,0.00021643,2]
[364781739,1749240643631,-431.67,0.00021643,2]
[364781740,1749240643639,-440.0,0.00021643,2]
[364781742,1749240643649,-2274.67,0.00021643,2]
[364781755,1749240643755,-440.0,0.00021643,2]
[364781757,1749240643765,-300.03839602,0.00021643,2]
[364781759,1749240643775,-1117.74,0.00021643,2]
[364781761,1749240643786,-529.41147251,0.00021643,2]
[364781763,1749240643795,-440.0,0.00021643,2]
[364781765,1749240643805,-440.0,0.00021643,2]
[364781767,1749240643814,-2157.36,0.00021643,2]
[364781769,1749240643823,-1320.35,0.00021643,2]
[364781771,1749240643832,-1236.34,0.00021643,2]
[364781773,1749240643841,-440.0,0.00021643,2]
[364781775,1749240643850,-1278.26,0.00021643,2]
[364781777,1749240643860,-440.0,0.00021643,2]
[364781779,1749240643869,-1437.5459281,0.00021797,6]
[364781782,1749240643879,-1500.0,0.00021858,2]
[364781786,1749240643888,-769.41894986,0.00021893,2]
[364781789,1749240643897,-500.0,0.00021893,2]
[364781791,1749240643906,-500.0,0.00021893,2]
[364781793,1749240643916,-500.0,0.00021893,2]
[364781795,1749240643925,-500.0,0.00021893,2]
[364781797,1749240643934,-500.0,0.00021893,2]
[364781799,1749240643943,-5000.0,0.00021893,2]
[364781801,1749240643952,-500.0,0.00021893,2]
[364781803,1749240643961,-500.0,0.00021893,2]
[364781805,1749240643971,-500.0,0.00021893,2]
[364781807,1749240643981,-500.0,0.00021893,2]
[364781809,1749240643990,-500.0,0.00021893,2]
[364781811,1749240643999,-500.0,0.00021893,2]
[364781813,1749240644009,-500.0,0.00021893,2]
[364781815,1749240644018,-246.22735807,0.00021893,2]
[364781817,1749240644027,-207.4,0.00021893,2]
[364781819,1749240644037,-494.07415984,0.00021917,2]
[364781821,1749240644046,-440.0,0.00021917,2]
[364781823,1749240644055,-698.12,0.00021917,2]
[364781825,1749240644064,-604.04,0.00021917,2]
[364781827,1749240644073,-560.01,0.00021917,2]
[364781829,1749240644083,-400.0,0.00021917,2]
[364781831,1749240644092,-400.0,0.00021917,2]
[364781833,1749240644101,-400.0,0.00021917,2]
[364781835,1749240644110,-400.0,0.00021917,2]
[364781837,1749240644119,-400.0,0.00021917,2]
[364781839,1749240644129,-400.0,0.00021917,2]
[364781841,1749240644138,-400.0,0.00021917,2]
[364781843,1749240644148,-400.0,0.00021917,2]
[364781845,1749240644157,-400.0,0.00021917,2]
[364781847,1749240644166,-400.0,0.00021917,2]
[364781849,1749240644175,-560.87,0.00021917,2]
[364781851,1749240644185,-500.0,0.00021917,2]
[364781853,1749240644194,-516.7,0.00021917,2]
[364781855,1749240644203,-445.81,0.00021917,2]
[364781856,1749240644213,-440.0,0.00021917,2]
[364781857,1749240644225,-1886.05,0.00021917,2]
[364781858,1749240644234,-654.4,0.00021917,2]
[364781859,1749240644244,-925.19,0.00021917,2]
[364781860,1749240644254,-440.0,0.00021917,2]
[364781861,1749240644263,-727.62,0.00021917,2]
[364781862,1749240644272,-462.23,0.00021917,2]
[364781863,1749240644281,-2822.37,0.00021917,2]
[364781864,1749240644291,-440.0,0.00021917,2]
[364781865,1749240644300,-440.0,0.00021917,2]
[364781866,1749240644310,-440.0,0.00021917,2]
[364781867,1749240644319,-440.0,0.00021917,2]
[364781868,1749240644329,-440.0,0.00021917,2]
[364781869,1749240644342,-1200.29,0.00021917,2]
[364781870,1749240644352,-440.0,0.00021917,2]
[364781871,1749240644362,-2670.16,0.00021917,2]
[364781872,1749240644371,-717.71,0.00021917,2]
[364781873,1749240644382,-440.0,0.00021917,2]
[364781874,1749240644392,-916.0,0.00021917,2]
[364781875,1749240644401,-849.72,0.00021917,2]
[364781876,1749240644412,-440.0,0.00021917,2]
[364781877,1749240644421,-440.0,0.00021917,2]
[364781878,1749240644431,-784.07,0.00021917,2]
[364781879,1749240644440,-440.0,0.00021917,2]
[364781880,1749240644450,-210.05,0.00021917,2]
[364781881,1749240644459,-2274.67,0.00021917,2]
[364781882,1749240644470,-1117.74,0.00021917,2]
[364781883,1749240644479,-500.0,0.00021917,2]
[364781884,1749240644489,-500.0,0.00021917,2]
[364781885,1749240644499,-500.0,0.00021917,2]
[364781887,1749240644508,-500.0,0.00021917,2]
[364781888,1749240644518,-500.0,0.00021917,2]